bitfinex-derivatives/quotes_SOLF0:USTF0_20250428
["timestamp","ask_amount","ask_price","bid_price","bid_amount"]
[1745866927339,6.8084,146.83,146.79,6.8098]
[1745866928640,6.8084,146.83,146.8,6.8095]
[1745866928935,6.8084,146.83,146.76,14.7378483]
[1745866929239,6.8087,146.82,146.76,14.7378483]
[1745866929440,3.9923,146.84,146.76,14.7378483]
[1745866929640,6.8084,146.83,146.76,14.7378483]
[1745866930339,6.8084,146.83,146.79,6.8097]
[1745866930839,6.8084,146.83,146.76,14.7378483]
[1745866931040,6.8084,146.83,146.79,6.8096]
[1745866931439,6.8084,146.83,146.76,14.7378483]
[1745866931640,96.31103579,146.97,146.86,6.8067]
[1745866931836,6.2456,146.96,146.84,38.12]
[1745866932139,70.45295719,146.96,146.89,6.8052]
[1745866932347,70.45295719,146.96,146.84,50.96]
[1745866932536,68.37255719,146.96,146.86,14.7378483]
[1745866932737,68.37255719,146.96,146.8,490.34]
[1745866933040,68.37255719,146.96,146.81,1.21587571]
[1745866933241,64.20735719,146.96,146.93,6.8034]
[1745866933641,64.20735719,146.96,146.86,14.7378483]
[1745866933945,64.20735719,146.96,146.92,14.7378483]
[1745866934137,64.20735719,146.96,146.86,72.9378483]
[1745866934338,64.20735719,146.96,146.95,14.7378483]
[1745866934837,64.20735719,146.96,146.94,6.803]
[1745866935043,53.45165719,146.96,146.94,6.803]
[1745866935345,6.0216,147.06,146.95,14.7378483]
[1745866935537,6.0216,147.06,146.98,14.7378483]
[1745866935741,6.0216,147.06,146.93,14.7378483]
[1745866935944,6.0216,147.06,147.0,14.7378483]
[1745866936245,6.0216,147.06,146.99,14.7378483]
[1745866936642,6.0216,147.06,147.0,6.7998]
[1745866936847,6.0216,147.06,146.99,14.7378483]
[1745866937043,6.0216,147.06,146.93,14.7378483]
[1745866937244,6.0216,147.06,146.94,1.21322522]
[1745866937439,6.0216,147.06,146.89,850.2]
[1745866937749,6.0216,147.06,146.9,1.21354698]
[1745866937940,23.48323463,147.04,146.9,1.21354698]
[1745866938146,23.48323463,147.01,146.9,1.21354698]
[1745866938346,23.48323463,147.01,146.95,6.8025]
[1745866938650,23.48323463,147.01,146.96,6.62414102]
[1745866938848,23.48323463,147.04,146.92,23.48323463]
[1745866939042,23.48323463,147.04,146.96,6.8018]
[1745866939444,23.48323463,147.01,146.89,513.68323463]
[1745866939641,23.48323463,147.01,146.94,6.803]
[1745866939939,23.48323463,147.01,146.88,23.48323463]
[1745866940149,1.9742,147.0,146.94,6.8029]
[1745866940650,1.9742,147.0,146.91,23.48323463]
[1745866940843,1.9742,147.0,146.92,6.6116472]
[1745866941049,1.9742,147.0,146.93,6.6116472]
[1745866941347,1.9742,147.0,146.94,6.803]
[1745866941652,1.9742,147.0,146.91,23.48323463]
[1745866941850,1.9742,147.0,146.92,6.60944253]
[1745866942046,1.9742,147.0,146.93,6.60944253]
[1745866942350,1.9742,147.0,146.89,23.48323463]
[1745866942648,366.9043,147.06,146.95,23.48323463]
[1745866942854,23.48323463,147.04,146.86,441.68323463]
[1745866943051,6.7996,147.02,146.94,6.8027]
[1745866943349,6.7996,147.02,146.92,23.48323463]
[1745866943547,6.7996,147.02,146.93,6.60322743]
[1745866943751,2.0715,147.05,146.94,6.60322743]
[1745866943951,23.48323463,147.02,146.93,6.8031]
[1745866944151,23.48323463,147.02,146.94,6.60425769]
[1745866944351,23.48323463,147.02,146.86,418.2]
[1745866944552,23.48323463,147.02,146.89,23.48323463]
[1745866944946,23.48323463,147.02,146.9,6.60373884]
[1745866945251,6.8002,147.01,146.94,6.803]
[1745866945653,6.8002,147.01,146.89,23.48323463]
[1745866945854,6.8002,147.01,146.9,6.60390163]
[1745866946044,368.08853739,147.06,146.98,23.48323463]
[1745866946248,1.18423739,147.06,147.05,6.798]
[1745866946443,2.1116,147.13,147.01,23.48323463]
[1745866946852,2.1116,147.13,147.03,6.7988]
[1745866947052,6.7957,147.1,147.01,23.48323463]
[1745866947253,367.1176,147.16,147.04,23.48323463]
[1745866947457,2.0625,147.15,147.07,6.7966]
[1745866947651,6.7954,147.11,147.04,23.48323463]
[1745866947958,23.48323463,147.1,147.02,6.7991]
[1745866948152,23.48323463,147.14,146.99,23.48323463]
[1745866948352,6.7962,147.09,147.0,6.583459]
[1745866948556,6.7962,147.09,146.99,23.48323463]
[1745866948761,6.7971,147.07,146.93,873.24323463]
[1745866949065,2.0974,147.08,146.97,23.48323463]
[1745866949262,2.0974,147.08,146.98,6.58076951]
[1745866949458,365.095,147.16,147.04,23.48323463]
[1745866949664,4.1599,147.15,147.07,23.48323463]
[1745866949864,4.1599,147.15,147.01,23.48323463]
[1745866950062,6.7938,147.14,147.06,23.48323463]
[1745866950260,27.64313463,147.15,147.04,23.48323463]
[1745866950465,6.7949,147.12,146.93,873.24323463]
[1745866950761,6.7949,147.12,147.02,23.48323463]
[1745866951165,2.095,147.16,147.03,6.56527378]
[1745866951360,2.095,147.16,147.06,23.48323463]
[1745866951565,4.1111,147.16,147.06,23.48323463]
[1745866951863,4.1111,147.16,147.1,6.7954]
[1745866951864,10.9041,147.16,147.1,6.7954]
[1745866952059,4.1111,147.16,147.06,23.48323463]
[1745866952564,2.0974,147.19,147.07,6.54890385]
[1745866952759,2.0974,147.19,147.13,23.48323463]
[1745866952964,2.0974,147.19,147.07,23.48323463]
[1745866953159,1.926,147.25,147.15,23.48323463]
[1745866953363,1.926,147.25,147.07,360.0]
[1745866953564,6.7903,147.22,147.08,6.53332955]
[1745866953763,23.48323463,147.22,147.1,23.48323463]
[1745866954165,6.7906,147.21,147.13,6.7942]
[1745866954366,1.926,147.25,147.13,23.48323463]
[1745866954766,6.7903,147.22,147.14,6.7937]
[1745866955566,25.40923463,147.25,147.1,23.48323463]
[1745866955963,23.48323463,147.22,147.1,23.48323463]
[1745866956369,1.9277,147.21,147.07,383.48323463]
[1745866956668,23.48323463,147.19,147.07,383.48323463]
[1745866957066,23.48323463,147.19,147.08,6.7969]
[1745866957266,23.48323463,147.19,147.07,360.0]
[1745866957566,6.7955,147.12,147.06,6.7982]
[1745866957867,390.46413463,147.21,147.02,23.48323463]
[1745866958062,23.48323463,147.17,147.06,6.7982]
[1745866958264,23.48323463,147.14,147.02,23.48323463]
[1745866958459,2.103,147.13,147.03,6.52567057]
[1745866958663,23.48323463,147.11,146.99,6.801]
[1745866958867,4.1562,147.13,147.0,23.48323463]
[1745866959061,23.48323463,147.12,147.0,23.48323463]
[1745866959770,6.7977,147.08,146.96,849.38]
[1745866959972,23.48323463,147.12,146.99,23.48323463]
[1745866960170,23.48323463,147.09,147.0,6.8008]
[1745866960472,1.9996,147.08,146.99,23.48323463]
[1745866960765,23.48323463,147.28,146.96,849.38]
[1745866960766,489.32,147.22,147.05,23.48323463]
[1745866960966,23.48323463,147.17,147.05,23.48323463]
[1745866961168,6.7948,147.14,147.08,30.28033463]
[1745866961369,29.65433463,147.2,147.08,23.48323463]
[1745866961765,29.65433463,147.2,147.05,23.48323463]
[1745866961966,23.48323463,147.17,147.04,23.48323463]
[1745866962168,6.7959,147.11,147.06,6.7978]
[1745866962368,6.1711,147.2,147.04,23.48323463]
[1745866962569,23.48323463,147.18,147.04,23.48323463]
[1745866963272,23.48323463,147.18,147.05,6.54309341]
[1745866963463,6.7946,147.14,147.04,23.48323463]
[1745866963670,23.48323463,147.18,147.05,6.54326149]
[1745866963868,23.48323463,147.18,147.04,23.48323463]
[1745866964069,23.48323463,147.18,147.08,6.7969]
[1745866964367,6.1711,147.2,147.07,23.48323463]
[1745866964570,6.1711,147.2,147.11,23.48323463]
[1745866965567,6.7939,147.16,147.11,23.48323463]
[1745866965867,6.1711,147.2,147.11,23.48323463]
[1745866966063,6.7927,147.18,147.14,6.7941]
[1745866966263,6.1711,147.2,147.11,23.48323463]
[1745866967166,6.793,147.18,147.14,6.7944]
[1745866967371,6.1711,147.2,147.11,23.48323463]
[1745866968073,6.7935,147.17,147.13,6.7946]
[1745866968367,6.1711,147.2,147.1,23.48323463]
[1745866968674,6.1711,147.2,147.11,6.54885895]
[1745866968870,6.1711,147.2,147.1,23.48323463]
[1745866968871,6.1711,147.2,147.12,6.54885895]
[1745866969170,6.7923,147.19,147.1,23.48323463]
[1745866969365,6.7923,147.19,147.11,6.54865121]
[1745866969563,6.7923,147.19,147.12,6.54865121]
[1745866969767,6.7919,147.2,147.13,6.54865121]
[1745866969962,6.7919,147.2,147.1,23.48323463]
[1745866970168,489.32,147.22,147.11,6.55447542]
[1745866970366,489.32,147.22,147.12,6.55447542]
[1745866970567,512.80323463,147.22,147.13,6.55447542]
[1745866970767,512.80323463,147.22,147.07,23.48323463]
[1745866970963,6.7935,147.17,147.12,6.7951]
[1745866971170,6.7935,147.17,147.13,6.5626967]
[1745866971372,6.7928,147.18,147.14,6.7944]
[1745866971873,6.7928,147.18,147.1,23.48323463]
[1745866972064,6.7928,147.18,147.11,6.56744253]
[1745866972268,6.7928,147.18,147.12,6.56744253]
[1745866972470,6.7928,147.18,147.13,6.56744253]
[1745866972669,6.7928,147.18,147.14,13.36164253]
[1745866972869,6.7928,147.18,147.15,6.56744253]
[1745866973170,6.7928,147.18,147.14,6.7942]
[1745866973369,512.80323463,147.22,147.15,6.58160582]
[1745866973569,512.80323463,147.22,147.09,23.48323463]
[1745866973864,6.7937,147.16,147.12,6.7951]
[1745866974064,512.80323463,147.22,147.13,6.58257971]
[1745866974274,512.80323463,147.22,147.14,6.59202612]
[1745866974575,6.7948,147.14,147.05,489.28]
[1745866974774,2.0171,147.23,147.12,23.48323463]
[1745866974971,2.0171,147.23,147.15,23.48323463]
[1745866975172,2.0171,147.23,147.16,6.59269757]
[1745866975375,512.60323463,147.29,147.18,6.7924]
[1745866975576,516.63943463,147.29,147.19,6.59269757]
[1745866975874,516.63943463,147.29,147.2,6.59269757]
[1745866976074,516.63943463,147.29,147.21,6.59269757]
[1745866976276,516.63943463,147.29,147.09,13.5936]
[1745866976574,6.7902,147.24,147.2,6.7917]
[1745866976773,6.7902,147.24,147.21,6.60542688]
[1745866976976,6.7902,147.24,147.22,6.60542688]
[1745866977274,493.1562,147.29,147.23,6.60157413]
[1745866977478,493.1562,147.29,147.24,6.60231941]
[1745866977677,6.7897,147.25,147.18,23.48323463]
[1745866977974,493.1562,147.29,147.19,6.60191998]
[1745866978174,493.1562,147.29,147.2,6.60191998]
[1745866978378,493.1562,147.29,147.21,6.60191998]
[1745866978676,493.1562,147.29,147.22,6.60191998]
[1745866978974,493.1562,147.29,147.23,13.39221998]
[1745866979176,493.1562,147.29,147.24,6.60191998]
[1745866979370,6.79,147.24,147.18,23.48323463]
[1745866979577,23.48323463,147.28,147.19,6.60255669]
[1745866979774,23.48323463,147.28,147.2,6.60255669]
[1745866979974,23.48323463,147.28,147.21,6.60255669]
[1745866980176,23.48323463,147.28,147.22,6.60255669]
[1745866980371,23.48323463,147.28,147.15,23.48323463]
[1745866980576,23.48323463,147.28,147.16,6.60632032]
[1745866980779,493.1562,147.29,147.21,23.48323463]
[1745866980977,493.1562,147.29,147.22,6.60632032]
[1745866981178,4.0362,147.29,147.23,6.60632032]
[1745866981378,4.0362,147.29,147.24,6.60632032]
[1745866981579,4.0362,147.29,147.25,6.60632032]
[1745866981878,4.0362,147.29,147.21,23.48323463]
[1745866982074,4.0362,147.29,147.22,6.59941]
[1745866982279,6.7883,147.28,147.24,6.7899]
[1745866982479,4.0362,147.29,147.25,6.59941]
[1745866982681,4.0362,147.29,147.24,6.7899]
[1745866982882,23.48323463,147.33,147.25,6.59657625]
[1745866983079,488.92,147.35,147.26,6.59657625]
[1745866983284,6.787,147.31,147.27,13.38497625]
[1745866983480,4.1081,147.34,147.27,6.7884]
[1745866983882,4.1081,147.34,147.24,23.48323463]
[1745866984079,4.1081,147.34,147.27,23.48323463]
[1745866984285,4.1081,147.34,147.3,6.7869]
[1745866984487,4.1081,147.34,147.21,23.48323463]
[1745866984683,4.1081,147.34,147.25,23.48323463]
[1745866984882,4.1081,147.34,147.26,6.58800561]
[1745866985183,65.67313283,147.38,147.28,23.48323463]
[1745866985381,6.7852,147.35,147.31,6.7864]
[1745866985578,65.67313283,147.38,147.28,23.48323463]
[1745866985775,65.67313283,147.38,147.29,6.58422481]
[1745866985976,65.67313283,147.38,147.25,23.48323463]
[1745866985977,63.57563283,147.38,147.3,6.58422481]
[1745866986181,63.57563283,147.38,147.31,6.58230653]
[1745866986376,63.57563283,147.38,147.37,23.48323463]
[1745866986582,70.35673283,147.44,147.37,30.06554116]
[1745866986782,70.35673283,147.44,147.37,23.48323463]
[1745866986988,70.35673283,147.44,147.4,6.7825]
[1745866987187,63.57563283,147.44,147.37,23.48323463]
[1745866987487,63.57563283,147.44,147.38,6.56792581]
[1745866987784,63.57563283,147.44,147.32,37.95525638]
[1745866988093,37.95525638,147.42,147.33,6.56470252]
[1745866988287,6.7831,147.39,147.35,6.7845]
[1745866988486,37.95525638,147.42,147.35,6.7845]
[1745866988986,63.57563283,147.44,147.32,37.95525638]
[1745866989188,101.53088921,147.44,147.33,6.56396064]
[1745866989388,63.57563283,147.44,147.34,6.56396064]
[1745866989688,63.57563283,147.44,147.35,6.56396064]
[1745866989890,63.57563283,147.44,147.36,6.55996662]
[1745866990090,6.7817,147.42,147.32,37.95525638]
[1745866990291,3.8718,147.47,147.35,37.95525638]
[1745866990492,3.8718,147.47,147.36,6.55923041]
[1745866990687,6.7815,147.43,147.34,37.95525638]
[1745866990888,6.7815,147.43,147.35,6.55860578]
[1745866991083,3.8718,147.47,147.36,6.55860578]
[1745866991289,3.8718,147.47,147.31,37.95525638]
[1745866991489,37.95525638,147.46,147.34,37.95525638]
[1745866991690,37.95525638,147.46,147.35,6.56119111]
[1745866991891,6.7808,147.44,147.39,6.7826]
[1745866992594,6.7812,147.43,147.39,6.7826]
[1745866993094,6.7816,147.42,147.39,6.7826]
[1745866993295,37.95525638,147.43,147.3,37.95525638]
[1745866993595,37.95525638,147.44,147.33,37.95525638]
[1745866993795,37.95525638,147.44,147.3,37.95525638]
[1745866994098,6.7824,147.41,147.33,37.95525638]
[1745866994295,6.7824,147.41,147.34,6.55407837]
[1745866994496,526.41525638,147.45,147.3,37.95525638]
[1745866994792,1.9642,147.4,147.31,6.55207459]
[1745866994992,1.9642,147.4,147.36,6.7839]
[1745866995194,1.9642,147.4,147.3,37.95525638]
[1745866995394,1.9673,147.39,147.31,6.55151071]
[1745866995593,1.9673,147.39,147.32,6.55151071]
[1745866995793,8.7506,147.39,147.33,6.55151071]
[1745866995997,1.9673,147.39,147.3,37.95525638]
[1745866996197,1.9673,147.39,147.31,6.55242485]
[1745866996497,4.0732,147.39,147.3,37.95525638]
[1745866996700,6.7847,147.36,147.32,6.7859]
[1745866996997,4.0732,147.39,147.3,37.95525638]
[1745866997292,4.0732,147.39,147.31,6.5548544]
[1745866997595,4.0732,147.39,147.33,37.95525638]
[1745866997791,4.0732,147.39,147.35,6.7844]
[1745866997999,4.0732,147.39,147.28,37.95525638]
[1745866998192,6.7835,147.38,147.33,6.7857]
[1745866998400,4.0732,147.39,147.28,37.95525638]
[1745866998591,4.0732,147.39,147.29,6.5524099]
[1745866998797,6.784,147.37,147.3,6.5524099]
[1745866998992,6.784,147.37,147.28,37.95525638]
[1745866999189,4.0732,147.39,147.29,6.55353111]
[1745866999391,4.0732,147.39,147.36,6.7841]
[1745866999698,4.0732,147.39,147.24,848.82]
[1745866999899,10.8563,147.39,147.3,37.95525638]
[1745867000091,4.0732,147.39,147.31,6.55033422]
[1745867000296,488.44,147.52,147.36,37.95525638]
[1745867000597,6.2792,147.47,147.36,37.95525638]
[1745867000993,6.2792,147.47,147.25,13.578]
[1745867001200,6.2792,147.47,147.34,37.95525638]
[1745867001396,6.7808,147.44,147.35,6.54250386]
[1745867001701,6.2792,147.47,147.37,37.95525638]
[1745867002901,6.2792,147.47,147.43,6.7808]
[1745867003102,6.2792,147.47,147.37,37.95525638]
[1745867003297,6.2792,147.47,147.38,6.53757526]
[1745867003494,6.2792,147.47,147.35,37.95525638]
[1745867003695,363.0,147.57,147.41,37.95525638]
[1745867003902,1.9561,147.51,147.34,488.36]
[1745867004101,1.9561,147.51,147.46,37.95525638]
[1745867004302,6.7756,147.55,147.48,6.7788]
[1745867004499,8.7317,147.55,147.48,6.7788]
[1745867004706,1.9561,147.55,147.51,6.7774]
[1745867005001,63.57563283,147.59,147.43,488.36]
[1745867005206,74.26893283,147.59,147.52,6.7768]
[1745867005503,3.9195,147.59,147.42,526.31525638]
[1745867005705,3.9195,147.59,147.5,37.95525638]
[1745867005901,3.9195,147.59,147.48,37.95525638]
[1745867006203,3.9195,147.59,147.42,886.31525638]
[1745867006402,6.7747,147.58,147.43,6.52332154]
[1745867006604,3.9195,147.59,147.48,37.95525638]
[1745867006800,6.7748,147.57,147.51,6.7774]
[1745867007100,3.9195,147.59,147.48,37.95525638]
[1745867007303,3.9195,147.59,147.52,6.7766]
[1745867007799,3.9195,147.59,147.51,44.73235638]
[1745867007998,41.87475638,147.59,147.47,37.95525638]
[1745867008205,41.87475638,147.59,147.42,488.36]
[1745867008206,41.87475638,147.59,147.44,37.95525638]
[1745867008406,41.87475638,147.59,147.45,6.5221022]
[1745867008704,37.95525638,147.58,147.46,6.52295771]
[1745867008902,37.95525638,147.58,147.44,37.95525638]
[1745867009107,6.7761,147.55,147.48,6.7788]
[1745867009303,3.9195,147.59,147.42,488.36]
[1745867009502,37.95525638,147.55,147.43,6.52487365]
[1745867009804,37.95525638,147.55,147.46,6.7797]
[1745867009998,488.1,147.58,147.42,37.95525638]
[1745867010207,488.1,147.58,147.45,37.95525638]
[1745867010507,526.05525638,147.58,147.46,37.95525638]
[1745867010900,526.05525638,147.58,147.5,6.7779]
[1745867011297,494.8746,147.58,147.51,6.7771]
[1745867011502,488.1,147.58,147.46,37.95525638]
[1745867011902,6.7751,147.57,147.5,6.7775]
[1745867012204,488.1,147.58,147.5,6.7775]
[1745867012405,6.7748,147.57,147.46,37.95525638]
[1745867012604,3.9195,147.59,147.52,37.95525638]
[1745867013104,6.7744,147.58,147.52,44.73195638]
[1745867013406,3.9195,147.59,147.46,37.95525638]
[1745867013606,6.7756,147.56,147.51,6.7771]
[1745867014103,3.9195,147.59,147.52,6.777]
[1745867014308,3.9195,147.59,147.49,37.95525638]
[1745867014904,3.9195,147.59,147.44,488.04]
[1745867015112,3.9195,147.59,147.49,37.95525638]
[1745867015806,3.9195,147.59,147.54,6.7757]
[1745867016107,3.9195,147.59,147.51,37.95525638]
[1745867016301,6.7753,147.56,147.5,6.7775]
[1745867016497,3.9195,147.59,147.46,37.95525638]
[1745867016699,3.9195,147.59,147.47,6.5327132]
[1745867016898,6.7748,147.57,147.51,6.7771]
[1745867017099,37.95525638,147.58,147.46,37.95525638]
[1745867017305,37.95525638,147.58,147.47,6.53359473]
[1745867017504,37.95525638,147.58,147.49,6.7783]
[1745867017700,41.87475638,147.59,147.46,37.95525638]
[1745867017903,41.87475638,147.59,147.47,6.53935362]
[1745867018098,37.95525638,147.56,147.37,847.9]
[1745867018304,37.95525638,147.53,147.4,37.95525638]
[1745867018609,5.976,147.52,147.41,6.54018004]
[1745867018809,5.976,147.52,147.42,6.54018004]
[1745867019011,5.976,147.52,147.43,6.54018004]
[1745867019207,5.976,147.52,147.44,6.54018004]
[1745867019509,5.976,147.52,147.45,6.54018004]
[1745867019704,5.976,147.52,147.43,6.781]
[1745867020008,5.976,147.52,147.44,6.55999324]
[1745867020200,5.976,147.52,147.43,6.781]
[1745867020400,5.976,147.52,147.44,6.56401555]
[1745867020601,5.976,147.52,147.42,37.95525638]
[1745867020602,5.976,147.52,147.45,6.56401555]
[1745867020801,6.778,147.5,147.44,6.7803]
[1745867021004,6.778,147.5,147.45,6.56369437]
[1745867021209,6.778,147.5,147.44,6.7803]
[1745867021504,5.976,147.52,147.45,13.34376763]
[1745867021505,6.7775,147.51,147.45,13.34376763]
[1745867021706,37.95525638,147.62,147.48,37.95525638]
[1745867021906,4.0869,147.61,147.52,37.95525638]
[1745867022106,1.9282,147.64,147.55,37.95525638]
[1745867022612,1.9282,147.64,147.59,6.7737]
[1745867022911,1.9282,147.64,147.55,37.95525638]
[1745867023100,6.7719,147.64,147.58,6.7741]
[1745867023306,96.31103579,147.65,147.59,6.55138698]
[1745867023504,96.31103579,147.65,147.6,6.55138698]
[1745867023711,96.31103579,147.65,147.56,37.95525638]
[1745867023910,96.31103579,147.65,147.57,6.55213608]
[1745867024105,96.31103579,147.65,147.58,6.55213608]
[1745867024406,96.31103579,147.65,147.59,13.32543608]
[1745867024711,134.26629217,147.65,147.53,37.95525638]
[1745867024908,37.95525638,147.62,147.54,6.55686803]
[1745867025103,2.007,147.61,147.55,6.55686803]
[1745867025308,103.08213579,147.65,147.56,44.51212441]
[1745867025509,96.31103579,147.65,147.59,37.95525638]
[1745867025708,96.31103579,147.65,147.6,6.55686803]
[1745867025912,96.31103579,147.65,147.64,6.7715]
[1745867026111,96.31103579,147.65,147.64,13.31878576]
[1745867026312,96.31103579,147.65,147.64,6.7715]
[1745867026513,96.31103579,147.65,147.64,13.31212434]
[1745867026712,6.7682,147.72,147.67,6.7698]
[1745867027207,6.0671,147.75,147.62,37.95525638]
[1745867027413,6.7684,147.71,147.66,6.7705]
[1745867027914,6.7683,147.71,147.67,6.7699]
[1745867028216,6.7683,147.71,147.62,37.95525638]
[1745867028415,37.95525638,147.73,147.65,6.7708]
[1745867028917,37.95525638,147.73,147.64,6.7714]
[1745867029114,37.95525638,147.73,147.59,37.95525638]
[1745867029409,37.95525638,147.7,147.6,6.53923709]
[1745867029615,37.95525638,147.7,147.62,6.772]
[1745867029912,6.0671,147.75,147.61,37.95525638]
[1745867030113,37.95525638,147.73,147.62,6.5397632]
[1745867030311,6.0671,147.75,147.63,6.5397632]
[1745867030512,6.7686,147.71,147.66,6.7703]
[1745867030912,6.7686,147.71,147.63,37.95525638]
[1745867031113,6.7686,147.71,147.67,6.7698]
[1745867031313,6.768,147.72,147.63,37.95525638]
[1745867031510,6.768,147.72,147.68,6.7695]
[1745867032213,6.7675,147.73,147.63,37.95525638]
[1745867032414,6.7675,147.73,147.64,6.52893493]
[1745867032607,494.6059,147.77,147.69,37.95525638]
[1745867032811,2.0089,147.79,147.72,37.95525638]
[1745867033617,2.0089,147.79,147.76,6.7657]
[1745867033817,2.0089,147.79,147.72,37.95525638]
[1745867034019,2.0089,147.79,147.69,37.95525638]
[1745867034318,37.95525638,147.78,147.7,6.51267948]
[1745867034516,37.95525638,147.78,147.67,37.95525638]
[1745867034720,2.0089,147.79,147.68,6.50843843]
[1745867035015,2.0089,147.79,147.69,6.50843843]
[1745867035218,37.95525638,147.78,147.67,37.95525638]
[1745867035517,37.95525638,147.78,147.68,6.50961251]
[1745867035717,37.95525638,147.78,147.67,37.95525638]
[1745867035917,6.7677,147.73,147.68,13.27521294]
[1745867036119,6.7677,147.73,147.68,6.7694]
[1745867036417,37.95525638,147.75,147.64,37.95525638]
[1745867036619,37.95525638,147.72,147.6,37.95525638]
[1745867036819,6.7697,147.68,147.64,6.7714]
[1745867037017,6.066,147.71,147.6,37.95525638]
[1745867037318,6.066,147.71,147.63,37.95525638]
[1745867037613,4.1004,147.71,147.64,6.5093629]
[1745867037813,1.9656,147.75,147.66,37.95525638]
[1745867038618,1.9656,147.75,147.67,6.50519441]
[1745867038819,6.7677,147.73,147.63,37.95525638]
[1745867039019,6.7677,147.73,147.64,6.50519441]
[1745867039219,6.7677,147.73,147.65,6.50519441]
[1745867039420,6.7677,147.73,147.69,6.769]
[1745867039821,1.9656,147.75,147.67,37.95525638]
[1745867040524,1.9656,147.75,147.63,37.95525638]
[1745867040720,1.9656,147.75,147.64,6.51027468]
[1745867040915,1.9656,147.75,147.63,37.95525638]
[1745867041120,1.9656,147.75,147.68,6.7693]
[1745867041422,1.9656,147.75,147.67,37.95525638]
[1745867041623,8.7322,147.75,147.71,6.768]
[1745867041825,1.9656,147.75,147.67,37.95525638]
[1745867042127,1.9656,147.75,147.72,6.7675]
[1745867042329,1.9656,147.75,147.67,37.95525638]
[1745867042530,487.4,147.76,147.7,37.95525638]
[1745867042730,2.0725,147.8,147.74,6.7668]
[1745867043225,6.7654,147.78,147.74,6.7668]
[1745867043431,487.36,147.91,147.7,37.95525638]
[1745867043627,4.1943,147.87,147.77,37.95525638]
[1745867043827,6.7614,147.86,147.8,6.7637]
[1745867044031,4.1943,147.87,147.8,37.95525638]
[1745867044332,4.1943,147.87,147.78,37.95525638]
[1745867044730,4.1943,147.87,147.7,37.95525638]
[1745867044731,4.1943,147.87,147.76,37.95525638]
[1745867044931,4.1943,147.87,147.77,6.50559201]
[1745867045131,10.9556,147.87,147.8,6.764]
[1745867045430,4.1943,147.87,147.79,37.95525638]
[1745867045933,4.1943,147.87,147.78,37.95525638]
[1745867046233,2.0725,147.9,147.78,37.95525638]
[1745867046433,4.003,147.89,147.79,6.5012075]
[1745867046625,4.003,147.89,147.78,37.95525638]
[1745867046825,487.36,147.91,147.79,6.50104275]
[1745867047025,487.36,147.91,147.81,37.95525638]
[1745867047229,6.053,147.96,147.84,37.95525638]
[1745867047431,6.053,147.96,147.82,37.95525638]
[1745867047631,37.95525638,147.91,147.79,37.95525638]
[1745867047831,6.7605,147.88,147.82,6.7632]
[1745867048036,37.95525638,147.88,147.76,525.17525638]
[1745867048237,6.0092,147.87,147.77,6.49590276]
[1745867048535,6.7623,147.85,147.76,37.95525638]
[1745867048735,6.7623,147.85,147.77,6.50300494]
[1745867048936,6.7623,147.85,147.78,6.50288743]
[1745867049234,6.7625,147.84,147.79,6.7644]
[1745867049436,6.0092,147.87,147.76,37.95525638]
[1745867049635,6.7618,147.86,147.8,6.7642]
[1745867049831,6.0092,147.87,147.76,37.95525638]
[1745867050135,6.7627,147.84,147.78,6.7651]
[1745867050337,43.96445638,147.87,147.76,37.95525638]
[1745867050531,6.0092,147.87,147.77,6.4990193]
[1745867050732,6.7622,147.85,147.79,6.7642]
[1745867050940,6.0092,147.87,147.79,6.7642]
[1745867051129,487.04,147.96,147.83,37.95525638]
[1745867051333,6.7595,147.91,147.83,37.95525638]
[1745867051532,37.95525638,147.93,147.83,37.95525638]
[1745867051734,2.085,147.95,147.83,37.95525638]
[1745867052135,2.085,147.95,147.85,6.7618]
[1745867052336,37.95525638,147.93,147.8,37.95525638]
[1745867052733,2.085,147.95,147.8,37.95525638]
[1745867052937,37.95525638,147.94,147.81,6.48761404]
[1745867053133,2.085,147.95,147.8,37.95525638]
[1745867053437,6.7601,147.89,147.83,37.95525638]
[1745867053638,2.085,147.95,147.83,37.95525638]
[1745867053834,40.04025638,147.95,147.84,6.7622]
[1745867054239,40.04025638,147.95,147.8,37.95525638]